Cogmind - Beta 11.1 @@@ ROGUE MODE // 2022.07.03 @ 23:28:12 Player: Jezoensis Result: Destroyed by Y-72 Warden with Quantum Rifle Performance ------------- Evolutions (6) 3000 Regions Visited (20) 4000 Robots Destroyed (185) 925 Value Destroyed (7212) 7212 Prototype IDs (41) 820 Alien Tech Used (0) 0 Bonus (6745) 6745 TOTAL SCORE: 22702 Bonus ------- High Alert Combat Kills 339 Follower Combat Kills 1085 Entered DSFs 500 Network Hubs Disabled 400 Aligned with FarCom 300 Met Warlord at Base 500 MAIN.C Attacked Warlord 500 Warlord Defense Kills 3206 A7 Reached Mainframe 300 Friendly Fire -385 Cogmind --------- Core Integrity 0/1150 Matter 241/300 Energy 99/100 System Corruption 6% Temperature Cool (9) Movement Core (50) Location -3/Proximity Caves Parts ------- > --- POWER (2) -------- (None) > --- PROPULSION (4) --- (None) > --- UTILITY (8) ------ Advanced Salvage Targeting Computer Improved Target Analyzer > --- WEAPON (5) ------- (None) > --- INVENTORY (5) ---- Improved Matter Compressor (300) Improved Weapon Cycler Improved Focal Shield Peak State ------------ > --- POWER ------------ Antimatter Reactor Quantum Reactor > --- PROPULSION ------- Improved Medium Treads Armored Medium Treads Centrium Heavy Treads > --- UTILITY ---------- High-capacity Storage Unit Enhanced Optical Array Advanced Signal Interpreter Improved Terrain Scan Processor 0b10 Alert Chip Advanced Salvage Targeting Computer Advanced Targeting Computer Improved Focal Shield > --- WEAPON ----------- Enhanced Nova Cannon Coil Gun KE Penetrator Railgun Advanced KE Penetrator > --- INVENTORY -------- Light Fission Core Improved Medium Treads Armored Medium Treads Centrium Heavy Treads Advanced Heat Sink Improved Matter Compressor Advanced Sensor Array Improved Terrain Scanner Advanced Salvage Targeting Computer Improved Weapon Cycler Improved Transmission Jammer Advanced Transmission Jammer Improved Utility Shielding Experimental Thermal Shield Advanced Hardlight Generator Long-range Tractor Beam Railgun Advanced KE Penetrator Advanced KE Penetrator [Rating: 127] Favorites ----------- Power Antimatter Reactor Engine Heavy Ion Engine Power Core Enhanced Nuclear Core Reactor Antimatter Reactor Propulsion Light Treads Treads Light Treads Wheel Armored Huge Wheel Utility Advanced Targeting Computer Device Improved Terrain Scanner Storage High-capacity Storage Unit Processor Advanced Targeting Computer Hackware Advanced Hacking Suite Protection Improved Utility Shielding Weapon Gauss Rifle Energy Gun Heavy EM Shotgun Energy Cannon Enhanced Nova Cannon Ballistic Gun Gauss Rifle Ballistic Cannon Light Cannon Launcher Rocket Launcher Special Weapon Mining Laser Slashing Weapon Katana Build | -11 -10 -10 -9 -9 -9 -8 -8 -7 -7 -6 -5 -5 -5 -5 -5 -4 -4 -4 -4 -3 ------- Run | Scr Mat Min Mat Min Exi Min Mat Fac DSF Fac Fac Ext Cet Arc Hub Fac Upp Upp War Pro Slots Evolved 12 | . . . 2 . . . 2 2 . 2 2 . . . . 2 . . . . Power 1 | . . . . . . . . . . . . . . . . 1 . . . . Propulsion 2 | . . . 1 . . . . . . . 1 . . . . . . . . . Utility 6 | . . . 1 . . . 1 1 . 2 . . . . . 1 . . . . Weapon 3 | . . . . . . . 1 1 . . 1 . . . . . . . . . Parts Attached 372 | 11 7 16 49 18 . 5 22 5 19 17 21 26 15 9 32 21 11 27 39 2 Power 14 | 1 . 1 3 . . . 1 1 . . . 1 1 1 . 1 . . 3 . Engine 6 | 1 . 1 3 . . . 1 . . . . . . . . . . . . . Core 4 | . . . . . . . . 1 . . . 1 1 . . . . . 1 . Reactor 4 | . . . . . . . . . . . . . . 1 . 1 . . 2 . Propulsion 60 | 6 . 6 17 10 . 2 3 . 2 . 1 . 3 1 3 . . 1 5 . Treads 34 | . . 3 10 4 . 1 1 . 1 . 1 . 3 1 3 . . 1 5 . Leg . | . . . . . . . . . . . . . . . . . . . . . Wheel 26 | 6 . 3 7 6 . 1 2 . 1 . . . . . . . . . . . Hover . | . . . . . . . . . . . . . . . . . . . . . Flight . | . . . . . . . . . . . . . . . . . . . . . Utility 197 | 2 1 4 22 4 . 2 8 2 10 15 13 15 5 5 23 15 10 20 19 2 Device 137 | 1 . 2 21 4 . 2 6 . 6 9 9 6 3 3 14 14 9 18 10 . Storage 6 | 1 1 1 . . . . . . . 1 . . . . 2 . . . . . Processor 18 | . . 1 1 . . . 2 1 3 1 1 3 . . . . 1 1 1 2 Hackware 3 | . . . . . . . . . . 1 1 1 . . . . . . . . Protection 33 | . . . . . . . . 1 1 3 2 5 2 2 7 1 . 1 8 . Artifact . | . . . . . . . . . . . . . . . . . . . . . Weapon 101 | 2 6 5 7 4 . 1 10 2 7 2 7 10 6 2 6 5 1 6 12 . Energy Gun 20 | 1 3 2 2 . . . 2 . 3 . 2 3 1 . 1 . . . . . Energy Cannon 14 | . . . . 3 . . 1 . . . . 1 1 . 1 2 . 3 2 . Ballistic Gun 49 | 1 . 1 3 1 . . 5 2 2 1 1 5 4 2 4 3 1 3 10 . Ballistic Cannon 2 | . . 2 . . . . . . . . . . . . . . . . . . Launcher 1 | . . . . . . . . . 1 . . . . . . . . . . . Special Weapon 5 | . 3 . 2 . . . . . . . . . . . . . . . . . Impact Weapon . | . . . . . . . . . . . . . . . . . . . . . Slashing Weapon 10 | . . . . . . 1 2 . 1 1 4 1 . . . . . . . . Piercing Weapon . | . . . . . . . . . . . . . . . . . . . . . Special Melee Weapon . | . . . . . . . . . . . . . . . . . . . . . Unidentified Prototypes 8 | . . . . . . . 1 1 . . . . 3 1 1 . . . 1 . Corrupted Parts 7 | . . . . . . . . . . . . 3 2 . 2 . . . . . System Corruption 36 | . . . . . . . . . . . . 24 10 . 2 . . . . . Parts Lost 45 | . . 1 3 4 . . . . 1 . 1 2 4 . 2 . 1 1 25 . Power 7 | . . . 1 . . . . . . . . . 1 . . . . . 5 . Propulsion 14 | . . 1 1 3 . . . . . . . . 2 . 1 . . . 6 . Utility 4 | . . . . . . . . . 1 . . . . . . . . . 3 . Weapon 20 | . . . 1 1 . . . . . . 1 2 1 . 1 . 1 1 11 . Highest Loss Streak 12 | . . 1 2 2 . . . . 1 . 1 1 4 . 1 . 1 1 12 . To Critical Strikes 1 | . . . . . . . . . . . . . 1 . . . . . . . Average Slot Usage (%) 92 | . 100 99 100 97 100 100 91 92 92 92 93 93 93 94 93 94 94 94 87 9 Engine 2 | . 14 14 11 11 11 11 9 2 . . . . . . . . . . . . Core 1 | . . . . . . . . 5 7 6 5 5 5 1 . . . . . . Reactor 3 | . . . . . . . . . . . . . . 3 5 10 10 10 8 . Treads 11 | . . 1 14 12 11 11 9 7 7 6 11 11 15 17 16 15 15 15 14 . Wheel 6 | . 28 26 18 18 22 21 10 7 7 6 5 5 1 . . . . . . . Device 6 | . 14 9 11 11 11 11 9 6 4 7 10 2 2 . 3 9 5 4 3 . Storage 6 | . 14 14 11 11 11 11 9 7 7 6 5 5 5 5 5 5 5 5 4 . Processor 23 | . . 4 11 11 11 11 18 23 23 25 23 29 29 29 29 26 30 31 30 9 Protection 1 | . . . . . . . . . 1 4 . 1 2 5 1 . . . 1 . Energy Gun 2 | . 9 12 10 1 . . 7 7 4 . . 1 . . . . . . . . Energy Cannon 2 | . . . . 15 22 15 2 . . . . 1 1 . . . . 1 3 . Ballistic Gun 19 | . 14 14 10 5 . . 12 15 25 21 22 24 26 29 28 25 26 24 18 . Slashing Weapon 1 | . . . . . . 6 4 6 . 4 4 . . . . . . . . . Naked Turns 24 | . . . . . . . . . . . . . . . . . . . 23 1 Heaviest Build 113 | 14 19 32 35 37 37 37 40 48 48 72 74 80 89 85 92 112 105 113 113 . Greatest Support 137 | 32 20 26 40 26 26 26 28 28 28 28 28 28 123 131 137 137 137 137 137 3 Greatest Overweight (x) 2 | . . 2 1 1 1 1 1 1 1 2 2 2 2 . . . . . 1 . Average Overweight (x) . | . . . . 1 1 1 1 1 1 1 2 2 . . . . . . . . Largest Inventory Capacity 20 | 8 10 15 15 15 15 15 15 15 15 20 20 20 20 20 20 20 20 20 20 5 Average Capacity 17 | 7 9 11 15 15 15 15 15 15 15 16 20 20 20 20 20 20 20 20 19 5 Most Carried 20 | 8 10 15 15 15 15 15 15 15 15 19 20 20 20 20 20 20 20 20 20 5 Average Carried 16 | 4 8 10 14 14 14 15 14 14 14 14 19 19 19 19 19 19 19 19 17 3 Final Capacity 20 | 8 10 15 15 15 15 15 15 15 15 20 20 20 20 20 20 20 20 20 5 5 Final Carried 20 | 8 10 14 15 14 15 15 15 15 15 19 20 20 20 20 19 20 20 20 5 3 Class Distribution -------------------- 29% | Scavenger-Mutant 28% | Scavenger-Skirmisher 17% | Scavenger-Assassin 9% | Mutant 5% | Skirmisher 5% | Scavenger-Gunner Dominant Class ---------------- Mutant | -10/Materials Scavenger-Mutant | -10/Mines Scavenger-Mutant | -9/Materials Scavenger-Mutant | -9/Mines Scavenger-Mutant | -9/Exiles Scavenger-Assassin | -8/Mines Skirmisher | -8/Materials Assassin | -7/Factory Skirmisher | -7/DSF Scavenger-Assassin | -6/Factory Scavenger-Assassin | -5/Factory Scavenger-Skirmisher | -5/Extension Scavenger-Skirmisher | -5/Cetus Scavenger-Skirmisher | -5/Archives Scavenger-Skirmisher | -5/Hub_04(d) Scavenger-Skirmisher | -4/Factory Scavenger-Skirmisher | -4/Upper Caves Scavenger-Skirmisher | -4/Upper Caves Scavenger-Mutant | -4/Warlord Mutant | -3/Proximity Caves Resources | -11 -10 -10 -9 -9 -9 -8 -8 -7 -7 -6 -5 -5 -5 -5 -5 -4 -4 -4 -4 -3 ----------- Run | Scr Mat Min Mat Min Exi Min Mat Fac DSF Fac Fac Ext Cet Arc Hub Fac Upp Upp War Pro Matter Collected 8786 | 204 99 313 689 211 10 . 320 . 403 438 293 1321 366 175 1130 481 305 574 1454 . Remotely 3311 | . . . . . . . . . 296 310 136 . 330 66 720 310 284 . 859 . Salvage Created 9435 | 35 44 313 1055 331 . 118 475 . 409 726 485 1281 217 92 1353 498 342 206 1455 . Parts 477 | 9 5 31 68 10 . 7 28 . 20 28 26 64 10 4 61 22 14 13 57 . Haulers Intercepted 6 | . 1 . 3 . . . 1 . . . . . . . 1 . . . . . Recyclers Shooed 6 | 1 . . . . . . . . . 1 . 2 . . . 2 . . . . Parts Field Recycled . | . . . . . . . . . . . . . . . . . . . . . Retrieved Matter . | . . . . . . . . . . . . . . . . . . . . . Parts Self-Destructed 26 | . . . . . . . . . . . . . . . . . 14 12 . . Prevented 2 | . . . . . . . . . . . . . . . . . . 2 . . Kills | -11 -10 -10 -9 -9 -9 -8 -8 -7 -7 -6 -5 -5 -5 -5 -5 -4 -4 -4 -4 -3 ------- Run | Scr Mat Min Mat Min Exi Min Mat Fac DSF Fac Fac Ext Cet Arc Hub Fac Upp Upp War Pro Combat Hostiles Destroyed 132 | . . 12 22 5 . 1 5 . 9 6 4 13 3 1 17 3 4 3 24 . Melee 1 | . . . . . . . . . . . . . . . . . . 1 . . Guns 112 | . . 10 22 2 . . 5 . 6 6 4 13 3 1 16 3 4 2 15 . Cannons 15 | . . 2 . 3 . 1 . . . . . . . . . . . . 9 . AOE 4 | . . . . . . . . . 3 . . . . . 1 . . . . . Classes Destroyed 20 | 1 1 4 3 1 . 1 . . 2 1 1 1 . . 1 . . . 3 . Worker 13 | . . . 2 . . 2 1 . . 1 1 . . . 6 . . . . . Builder 10 | . . 1 2 . . . . . . 1 2 1 . . 2 1 . . . . Tunneler 7 | 2 . 1 2 . . . . . . . . . . . 1 1 . . . . Hauler 6 | . 1 . 3 . . . 1 . . . . . . . 1 . . . . . Recycler 10 | . . . . 1 . . 2 . . 3 1 2 . . . 1 . . . . Operator 1 | . . . . . . . . . . . . . . . 1 . . . . . Watcher 5 | . . . 1 . . . 1 . . 1 . . . . 1 1 . . . . Swarmer 28 | . . 9 7 . . . 3 . . 3 . 2 . . 4 . . . . . Grunt 46 | . . 1 9 3 . . . . 5 . 2 3 1 . 8 . 4 . 10 . Brawler 2 | . . . . . . . . . . . 1 . . . . . . . 1 . Duelist 6 | . . . 1 2 . . . . 1 . . . . . 1 . . . 1 . Protector 5 | . . . . . . . . . . . . . . . . . . . 5 . Sentry 21 | . . 2 5 . . . 2 . . 1 1 7 . 1 1 1 . . . . Demolisher 1 | . . . . . . . . . . . . . . . . . . . 1 . Specialist 2 | . . . . . . . . . 2 . . . . . . . . . . . Hunter 7 | . . . . . . 1 . . . . . . . . 1 2 . 2 1 . Programmer 8 | . . . . . . . . . . 2 . . . . 2 . . 1 3 . Heavy 1 | . . . . . . . . . 1 . . . . . . . . . . . Behemoth 1 | . . . . . . . . . . . . 1 . . . . . . . . Cetus Guard 2 | . . . . . . . . . . . . . 2 . . . . . . . Enhanced Grunt 1 | . . . . . . . . . . . . . . . . . . . 1 . Executioner 1 | . . . . . . . . . . . . . . . . . . . 1 . Bouncer 1 | . . . . . . . . . . . . . . . . . . . 1 . Best Kill Streak 13 | 1 1 3 9 4 . 2 4 . 6 4 3 5 2 1 13 2 4 2 7 . Combat Bots Only 7 | . . 3 5 3 . 1 3 . 6 4 3 5 2 1 7 2 4 2 7 . Max Kills in Single Turn 5 | 1 1 1 2 1 . 1 2 . 4 2 1 1 1 1 5 1 2 1 2 . Gunslinging 1 | . . . 1 . . . 1 . 1 . . . . . 1 . 1 . 1 . Exploded 3 | . . . . . . . . . 3 . . . . . 1 . . . . . Melee 1 | . . . . . . . . . . . . . . . . . . 1 . . Uniques/NPCs Destroyed . | . . . . . . . . . . . . . . . . . . . . . Combat | -11 -10 -10 -9 -9 -9 -8 -8 -7 -7 -6 -5 -5 -5 -5 -5 -4 -4 -4 -4 -3 -------- Run | Scr Mat Min Mat Min Exi Min Mat Fac DSF Fac Fac Ext Cet Arc Hub Fac Upp Upp War Pro Damage Taken 11790 | . 10 279 1034 427 . 63 60 . 493 122 267 872 602 82 1145 204 293 401 5315 121 Core 1884 | . . 39 163 176 . 15 . . 62 5 . 134 64 . 51 . 45 9 1000 121 Absorbed by Shields 750 | . . . . . . . . . . . 36 42 . . . . . . 672 . Reduced by Siege Mode 301 | . . . . . . . . . . . . . . . 50 6 13 15 217 . Redirected to Shielding 204 | . . . . . . . . . . . . 61 . . 31 . . . 112 . Core Remaining (%) 80 | 100 . 84 . . . 11 100 . 91 99 . . . . 75 . . . . . Volleys Fired 366 | 9 11 34 72 12 . 6 10 . 9 17 9 45 9 4 30 17 5 19 48 . Largest 5 | 2 2 2 2 2 . 2 3 . 4 4 5 5 5 5 5 5 5 5 5 . Hottest 254 | 70 100 98 100 136 . 136 101 . 131 109 159 174 167 167 254 169 168 168 225 . Shots Fired 1143 | 18 15 68 136 24 . 12 30 . 36 67 43 186 41 19 143 63 25 43 174 . Gun 1048 | 18 8 61 132 9 . . 30 . 34 67 43 181 40 19 141 57 25 30 153 . Cannon 82 | . . 7 . 15 . 12 . . . . . 5 1 . 2 6 . 13 21 . Launcher 2 | . . . . . . . . . 2 . . . . . . . . . . . Special 11 | . 7 . 4 . . . . . . . . . . . . . . . . . Kinetic 898 | 9 4 41 64 6 . . 20 . 29 67 34 161 40 19 139 57 25 30 153 . Thermal 176 | 9 11 27 72 18 . 12 . . . . . 5 1 . 2 6 . 13 . . Explosive 2 | . . . . . . . . . 2 . . . . . . . . . . . Electromagnetic 46 | . . . . . . . 10 . 5 . 9 20 . . 2 . . . . . Entropic 21 | . . . . . . . . . . . . . . . . . . . 21 . Robot Hit Streak 25 | 4 5 10 8 15 . 5 15 . 11 7 16 15 14 20 23 25 7 8 11 . Robot Miss Streak 5 | 1 1 4 4 1 . 1 5 . 2 3 1 5 1 . 2 2 1 2 4 . Penetration Max 2 | . . . . . . . . . 1 1 . 1 . . 2 1 . . 2 . Secondary Targets 30 | . . 2 6 1 . . 1 . 2 . 2 2 2 1 4 . 2 . 5 . Max Gunslinging Chain 1 | . . 1 1 1 . . 1 . 1 . 1 1 1 1 1 . 1 . 1 . Shots Hit Robots 759 | 10 7 41 85 19 . 10 20 . 31 35 42 118 32 19 98 39 18 22 113 . Core Hits 359 | 5 4 18 40 7 . 4 14 . 22 23 17 47 13 5 48 19 8 8 57 . Critical Kills 14 | . . . . . . . 1 . . 1 . 1 1 1 2 1 2 . 4 . Critical Parts Destroyed 22 | . . . . . . . . . . 2 1 3 1 . 6 2 . 1 6 . Critical Strikes 60 | . . 3 6 . . . 1 . . 3 1 4 2 1 8 3 2 1 25 . Burn 8 | . . 2 6 . . . . . . . . . . . . . . . . . Destroy 38 | . . . . . . . 1 . . 3 1 4 2 1 8 3 2 1 12 . Blast 1 | . . 1 . . . . . . . . . . . . . . . . . . Sunder 13 | . . . . . . . . . . . . . . . . . . . 13 . Melee Attacks 58 | . . . . . . 4 9 4 1 14 24 2 . . . . . . . . Impact . | . . . . . . . . . . . . . . . . . . . . . Slashing 58 | . . . . . . 4 9 4 1 14 24 2 . . . . . . . . Piercing . | . . . . . . . . . . . . . . . . . . . . . Sneak Attacks 10 | . . . . . . 3 . . . 2 5 . . . . . . . . . Combat Hostiles . | . . . . . . . . . . . . . . . . . . . . . Follow-up Attacks . | . . . . . . . . . . . . . . . . . . . . . Damage Inflicted 21179 | 128 66 537 1595 361 . 346 459 . 1076 955 1014 2839 727 477 3948 1091 455 391 4714 . Guns 16784 | 128 66 458 1595 86 . . 360 . 564 832 688 2839 727 477 2967 1091 455 381 3070 . Cannons 2142 | . . 79 . 275 . 144 . . . . . . . . . . . . 1644 . Explosions 1534 | . . . . . . . 44 . 512 . . . . . 978 . . . . . Melee 706 | . . . . . . 202 55 . . 123 326 . . . . . . . . . Ramming 13 | . . . . . . . . . . . . . . . 3 . . 10 . . Kinetic 14611 | 53 27 253 595 67 . . 183 . 497 832 527 2437 727 477 2939 1091 455 381 3070 . Thermal 1880 | 75 39 284 1000 294 . 144 44 . . . . . . . . . . . . . Explosive 512 | . . . . . . . . . 512 . . . . . . . . . . . Electromagnetic 1813 | . . . . . . . 177 . 67 . 161 402 . . 1006 . . . . . Impact . | . . . . . . . . . . . . . . . . . . . . . Slashing 706 | . . . . . . 202 55 . . 123 326 . . . . . . . . . Piercing . | . . . . . . . . . . . . . . . . . . . . . Entropic 1644 | . . . . . . . . . . . . . . . . . . . 1644 . Highest Corruption 38 | . . . . . . . . . . 1 . 24 34 34 38 . . 1 6 6 Average Corruption 17 | . . . . . . . . . . 1 . 10 31 34 34 . . 1 5 6 Corruption Purged . | . . . . . . . . . . . . . . . . . . . . . Corruption Blocked . | . . . . . . . . . . . . . . . . . . . . . Effects 127 | . . . . . . . . . . 1 . 36 18 7 37 . . . 24 4 Message Errors 30 | . . . . . . . . . . . . 10 4 2 5 . . . 9 . Matter Fused 34 | . . . . . . . . . . . . 9 7 . 12 . . . 4 2 Heat Flow Errors 14 | . . . . . . . . . . . . 4 1 3 2 . . . 3 1 Energy Discharges 7 | . . . . . . . . . . 1 . 3 1 . 1 . . . 1 . Parts Rejected 1 | . . . . . . . . . . . . . . 1 . . . . . . Data Loss (minor) 12 | . . . . . . . . . . . . 2 2 . 5 . . . 3 . Data Loss (major) 7 | . . . . . . . . . . . . 2 . . 1 . . . 3 1 Misfires 5 | . . . . . . . . . . . . 1 1 . 3 . . . . . Alerts 1 | . . . . . . . . . . . . . . . 1 . . . . . Misdirections 2 | . . . . . . . . . . . . 1 1 . . . . . . . Weapon Failures 14 | . . . . . . . . . . . . 4 1 1 7 . . . 1 . Overload Shots . | . . . . . . . . . . . . . . . . . . . . . Overflow Damage 352 | . . . . 16 . 82 63 . . . 61 . . . 55 . . . 75 . Projectiles 91 | . . . . 16 . . . . . . . . . . . . . . 75 . Explosions 79 | . . . . . . . 24 . . . . . . . 55 . . . . . Melee 182 | . . . . . . 82 39 . . . 61 . . . . . . . . . Knockbacks . | . . . . . . . . . . . . . . . . . . . . . Impact . | . . . . . . . . . . . . . . . . . . . . . Kinetic . | . . . . . . . . . . . . . . . . . . . . . Secondary . | . . . . . . . . . . . . . . . . . . . . . Self-Inflicted Damage 171 | . . . . . . . . . . . . . . . 171 . . . . . Shots 2 | . . . . . . . . . . . . . . . 2 . . . . . Rammed . | . . . . . . . . . . . . . . . . . . . . . Targets Rammed 2 | . . . . . . . . . . . . . . . 1 . . 1 . . Kicked . | . . . . . . . . . . . . . . . . . . . . . Crushed 2 | . . . . . . . . . . . . . . . 1 . . 1 . . Highest Temperature 454 | 100 40 110 56 160 . 163 24 . 18 300 33 257 140 235 416 351 196 344 454 177 Average Temperature 94 | 46 18 37 17 56 . 69 16 . 7 115 14 65 64 109 150 93 110 162 168 91 Received Heat Transfer 2191 | . 6 45 387 72 . . 9 . 72 . 90 151 . . 222 27 165 . 915 30 Effects 15 | . . . . . . . . . . 3 . . . . 5 . . 1 6 . Shutdowns 1 | . . . . . . . . . . . . . . . . . . . 1 . Energy Bleed 2 | . . . . . . . . . . . . . . . 1 . . . 1 . Interference 3 | . . . . . . . . . . 3 . . . . . . . . . . Matter Decay 2 | . . . . . . . . . . . . . . . . . . . 2 . Short Circuit 2 | . . . . . . . . . . . . . . . . . . 1 1 . Damage (minor) 2 | . . . . . . . . . . . . . . . 1 . . . 1 . Damage (major) 3 | . . . . . . . . . . . . . . . 3 . . . . . Siege Activations 18 | . . . . . . . . . . . . . . 2 5 2 1 2 6 . Total Turns 347 | . . . . . . . . . . . . . . 10 103 22 18 42 152 . Longest Duration 87 | . . . . . . . . . . . . . . 8 54 12 18 24 87 . Robots Corrupted 1 | . . . . . . . . . . . . . . . 1 . . . . . Combat Hostiles . | . . . . . . . . . . . . . . . . . . . . . Parts Fried 7 | . . . . . . . . . . . . 1 . . 4 . . . 2 . Impact Corruptions . | . . . . . . . . . . . . . . . . . . . . . Robots Melted . | . . . . . . . . . . . . . . . . . . . . . Combat Hostiles . | . . . . . . . . . . . . . . . . . . . . . Parts Melted 12 | . 1 4 5 2 . . . . . . . . . . . . . . . . Heat Transferred 4342 | 222 111 851 2331 518 . 259 50 . . . . . . . . . . . . . Parts Sabotaged 2 | . . . . . . . . . . . . . . . . . . . 2 . Parts Stolen . | . . . . . . . . . . . . . . . . . . . . . Parts Stripped . | . . . . . . . . . . . . . . . . . . . . . Power Chain Reactions 3 | . . . . . . . 1 . . . . . . . 2 . . . . . Missiles Intercepted . | . . . . . . . . . . . . . . . . . . . . . Alert | -11 -10 -10 -9 -9 -9 -8 -8 -7 -7 -6 -5 -5 -5 -5 -5 -4 -4 -4 -4 -3 ------- Run | Scr Mat Min Mat Min Exi Min Mat Fac DSF Fac Fac Ext Cet Arc Hub Fac Upp Upp War Pro Peak Influence 1112 | 10 165 394 599 192 . 71 297 139 319 281 272 288 402 281 1112 710 . . . . Initial 544 | . 6 64 153 117 . . 27 135 97 167 137 35 160 160 98 544 . . . . Average 223 | 3 82 299 320 155 . 55 167 136 208 137 167 111 238 251 362 578 . . . . Maximum Alert Level 4 | . . 1 2 . . . 1 . 1 1 1 1 2 1 4 3 . . . . Low Security (%) 58 | 100 100 15 18 100 . 100 57 100 59 85 70 86 69 13 21 . . . . . Level 1 24 | . . 84 46 . . . 42 . 40 14 29 13 10 86 31 . . . . . Level 2 15 | . . . 34 . . . . . . . . . 20 . 43 92 . . . . Level 3 . | . . . . . . . . . . . . . . . 1 7 . . . . Level 4 . | . . . . . . . . . . . . . . . 1 . . . . . Level 5 . | . . . . . . . . . . . . . . . . . . . . . High Security . | . . . . . . . . . . . . . . . . . . . . . Max Security . | . . . . . . . . . . . . . . . . . . . . . Sterilizations 1 | . . . . . . . . . 1 . . . . . . . . . . . Squads Dispatched 24 | . 2 . 4 . . . 1 . 2 3 2 1 . . 8 . . . . 1 Investigation 4 | . 2 . 1 . . . . . . . 1 . . . . . . . . . Extermination 3 | . . . . . . . . . . 1 1 . . . 1 . . . . . Reinforcement 14 | . . . 3 . . . 1 . 2 2 . 1 . . 5 . . . . . Assault 3 | . . . . . . . . . . . . . . . 2 . . . . 1 Garrison . | . . . . . . . . . . . . . . . . . . . . . Intercept . | . . . . . . . . . . . . . . . . . . . . . Searches Triggered . | . . . . . . . . . . . . . . . . . . . . . Construction Impeded 1 | . . . . . . . . . . . . . . . 1 . . . . . Haulers Reinforced 1 | . . . . . . . . . . . . . . . 1 . . . . . Active Scanning Responses . | . . . . . . . . . . . . . . . . . . . . . Cargo Convoy Interrupts . | . . . . . . . . . . . . . . . . . . . . . Stealth | -11 -10 -10 -9 -9 -9 -8 -8 -7 -7 -6 -5 -5 -5 -5 -5 -4 -4 -4 -4 -3 --------- Run | Scr Mat Min Mat Min Exi Min Mat Fac DSF Fac Fac Ext Cet Arc Hub Fac Upp Upp War Pro Distress Signals 8 | . 1 . 1 . . . . . . 1 . . 1 . 2 . . . 2 . Communications Jammed 43 | . . . . . . . . . . . . . . . 32 11 . . . . Distress Signals 43 | . . . . . . . . . . . . . . . 32 11 . . . . Times Spotted 278 | . 5 14 27 5 . 1 7 . 13 10 7 28 7 3 27 8 4 4 92 16 Peak Tracking Total 15 | . 3 3 6 3 . 1 3 . 6 2 4 6 4 2 5 4 4 2 15 13 Tactical Retreats 18 | . . 2 1 . . . . . 1 1 2 1 . . 3 . . . 3 4 Traps | -11 -10 -10 -9 -9 -9 -8 -8 -7 -7 -6 -5 -5 -5 -5 -5 -4 -4 -4 -4 -3 ------- Run | Scr Mat Min Mat Min Exi Min Mat Fac DSF Fac Fac Ext Cet Arc Hub Fac Upp Upp War Pro Traps Triggered 1 | . . . . . . . . . 1 . . . . . . . . . . . Indirectly . | . . . . . . . . . . . . . . . . . . . . . Trap Hack Attempts . | . . . . . . . . . . . . . . . . . . . . . Triggered . | . . . . . . . . . . . . . . . . . . . . . Disarmed . | . . . . . . . . . . . . . . . . . . . . . Reprogrammed . | . . . . . . . . . . . . . . . . . . . . . Reused . | . . . . . . . . . . . . . . . . . . . . . Traps Extracted . | . . . . . . . . . . . . . . . . . . . . . Installed . | . . . . . . . . . . . . . . . . . . . . . Triggered 8 | . . . . . . . . . . . . . . . . . . . 8 . Machines | -11 -10 -10 -9 -9 -9 -8 -8 -7 -7 -6 -5 -5 -5 -5 -5 -4 -4 -4 -4 -3 ---------- Run | Scr Mat Min Mat Min Exi Min Mat Fac DSF Fac Fac Ext Cet Arc Hub Fac Upp Upp War Pro Machines Disabled 35 | . . 1 1 . . 1 . . . 3 . 4 3 2 19 . . . 1 . Max in Single Turn 7 | . . 1 1 . . 1 . . . 2 . 1 1 1 7 . . . 1 . Network Hub 2 | . . . . . . . . . . . . . . . 2 . . . . . Machines Sabotaged . | . . . . . . . . . . . . . . . . . . . . . Garrisons Compromised . | . . . . . . . . . . . . . . . . . . . . . Overloaded Fab Kills . | . . . . . . . . . . . . . . . . . . . . . Hacking | -11 -10 -10 -9 -9 -9 -8 -8 -7 -7 -6 -5 -5 -5 -5 -5 -4 -4 -4 -4 -3 --------- Run | Scr Mat Min Mat Min Exi Min Mat Fac DSF Fac Fac Ext Cet Arc Hub Fac Upp Upp War Pro Machines Accessed 54 | . 9 . 8 . 1 . 4 3 . 3 10 8 . . 3 3 . 1 1 . Terminals 41 | . 8 . 7 . . . 3 3 . 2 5 8 . . 2 3 . . . . Fabricators 4 | . . . . . . . . . . 1 3 . . . . . . . . . Repair Stations . | . . . . . . . . . . . . . . . . . . . . . Recycling Units 4 | . 1 . 1 . . . 1 . . . 1 . . . . . . . . . Scanalyzers . | . . . . . . . . . . . . . . . . . . . . . Garrison Access 2 | . . . . . . . . . . . 1 . . . 1 . . . . . Total Hacks 138 | . 25 . 29 . 1 . 9 8 . 9 25 20 . . 3 7 . 1 1 . Successful 78 | . 16 . 17 . 1 . 7 3 . 6 12 10 . . . 4 . 1 1 . Failed 58 | . 8 . 12 . . . 2 4 . 3 13 10 . . 3 3 . . . . Catastrophic 12 | . 1 . 2 . . . . 1 . . 4 . . . 2 2 . . . . Database Lockouts 2 | . 1 . . . . . . 1 . . . . . . . . . . . . Manual 78 | . 20 . 15 . 1 . 8 6 . 4 11 9 1 . 2 1 . . . . Terminals 113 | . 24 . 28 . . . 8 8 . 5 11 20 . . 2 7 . . . . Fabricators 15 | . . . . . . . . . . 4 11 . . . . . . . . . Repair Stations . | . . . . . . . . . . . . . . . . . . . . . Recycling Units 4 | . 1 . 1 . . . 1 . . . 1 . . . . . . . . . Scanalyzers . | . . . . . . . . . . . . . . . . . . . . . Garrison Access 3 | . . . . . . . . . . . 2 . . . 1 . . . . . Terminal Hacks 40 | . 7 . 13 . 1 . 3 2 . 1 3 5 . . . 3 . 1 1 . Part Schematic 2 | . . . 1 . . . . 1 . . . . . . . . . . . . Robot Analysis 11 | . 3 . 5 . . . 2 . . . . 1 . . . . . . . . Prototype ID Bank 4 | . 1 . 1 . . . 1 . . . . . . . . 1 . . . . Open Door 3 | . . . . . . . . . . . 1 . . . . . . 1 1 . Open DSF 1 | . . . . . . . . 1 . . . . . . . . . . . . Branch Access Points 4 | . . . 1 . . . . . . 1 1 . . . . 1 . . . . Terminal Index 3 | . 1 . 1 . . . . . . . . 1 . . . . . . . . Unreport Threat 4 | . . . 3 . . . . . . . . 1 . . . . . . . . Locate Traps 4 | . . . . . . . . . . . 1 2 . . . 1 . . . . Zone Layout 3 | . 2 . 1 . . . . . . . . . . . . . . . . . EX-Prototype ID Bank 1 | . . . . . 1 . . . . . . . . . . . . . . . Fabricator Hacks 7 | . . . . . . . . . . 3 4 . . . . . . . . . Network Status 2 | . . . . . . . . . . 1 1 . . . . . . . . . Load Schematic 2 | . . . . . . . . . . 1 1 . . . . . . . . . Build 3 | . . . . . . . . . . 1 2 . . . . . . . . . Repair Station Hacks . | . . . . . . . . . . . . . . . . . . . . . Recycling Unit Hacks . | . . . . . . . . . . . . . . . . . . . . . Scanalyzer . | . . . . . . . . . . . . . . . . . . . . . Garrison Access Hacks . | . . . . . . . . . . . . . . . . . . . . . Unauthorized Hacks 31 | . 9 . 4 . . . 4 1 . 2 5 5 . . . 1 . . . . Terminals 24 | . 8 . 3 . . . 3 1 . 2 1 5 . . . 1 . . . . Track 7 | . 3 . 1 . . . . . . . . 2 . . . 1 . . . . Assimilate 3 | . 2 . . . . . . . . 1 . . . . . . . . . . Botnet 12 | . 2 . 2 . . . 2 1 . 1 1 3 . . . . . . . . Operators 2 | . 1 . . . . . 1 . . . . . . . . . . . . . Fabricators 3 | . . . . . . . . . . . 3 . . . . . . . . . Prioritize 1 | . . . . . . . . . . . 1 . . . . . . . . . Fabnet 1 | . . . . . . . . . . . 1 . . . . . . . . . Haulers 1 | . . . . . . . . . . . 1 . . . . . . . . . Repair Stations . | . . . . . . . . . . . . . . . . . . . . . Recycling Units 4 | . 1 . 1 . . . 1 . . . 1 . . . . . . . . . Recyclers 2 | . . . . . . . 1 . . . 1 . . . . . . . . . Tunnel 2 | . 1 . 1 . . . . . . . . . . . . . . . . . Scanalyzers . | . . . . . . . . . . . . . . . . . . . . . Garrison Access . | . . . . . . . . . . . . . . . . . . . . . Data Cores Recovered 1 | . . . . . . . . . . . . 1 . . . . . . . . Used . | . . . . . . . . . . . . . . . . . . . . . Hacking Detections 46 | . 8 . 7 . . . 3 2 . 3 10 7 . . 3 3 . . . . Full Trace Events 3 | . 2 . . . . . . . . . 1 . . . . . . . . . Feedback Events . | . . . . . . . . . . . . . . . . . . . . . Feedback Blocked . | . . . . . . . . . . . . . . . . . . . . . Robot Schematics Acquired . | . . . . . . . . . . . . . . . . . . . . . Robots Built . | . . . . . . . . . . . . . . . . . . . . . Authchips . | . . . . . . . . . . . . . . . . . . . . . Time . | . . . . . . . . . . . . . . . . . . . . . Total Robot Build Rating . | . . . . . . . . . . . . . . . . . . . . . Part Schematics Acquired 2 | . . . 1 . . . . 1 . . . . . . . . . . . . Parts Built 4 | . . . . . . . . . . 1 3 . . . . . . . . . Authchips 2 | . . . . . . . . . . 1 1 . . . . . . . . . Time 193 | . . . . . . . . . . 51 142 . . . . . . . . . Total Part Build Rating 16 | . . . . . . . . . . 1 15 . . . . . . . . . Parts Repaired . | . . . . . . . . . . . . . . . . . . . . . Time . | . . . . . . . . . . . . . . . . . . . . . Parts Recycled . | . . . . . . . . . . . . . . . . . . . . . Recycled Matter . | . . . . . . . . . . . . . . . . . . . . . Retrieved Matter . | . . . . . . . . . . . . . . . . . . . . . Retrieved Components . | . . . . . . . . . . . . . . . . . . . . . Parts Scanalyzed . | . . . . . . . . . . . . . . . . . . . . . Part Schematics Acquired . | . . . . . . . . . . . . . . . . . . . . . Parts Damaged . | . . . . . . . . . . . . . . . . . . . . . Bothacking | -11 -10 -10 -9 -9 -9 -8 -8 -7 -7 -6 -5 -5 -5 -5 -5 -4 -4 -4 -4 -3 ------------ Run | Scr Mat Min Mat Min Exi Min Mat Fac DSF Fac Fac Ext Cet Arc Hub Fac Upp Upp War Pro Used RIF Installer . | . . . . . . . . . . . . . . . . . . . . . Robots Hacked 7 | . . . . . . . . . . . . . . . . . . 2 4 1 Non-combat . | . . . . . . . . . . . . . . . . . . . . . Combat 7 | . . . . . . . . . . . . . . . . . . 2 4 1 Robot Hacks Applied . | . . . . . . . . . . . . . . . . . . . . . Relay Couplers Released . | . . . . . . . . . . . . . . . . . . . . . Fabnet Peak Effective % 3 | . . . . . . . . . . . . . . . . 3 3 3 3 1 Autooverrided 7 | . . . . . . . . . . . . . . . . . . 2 4 1 Robots Rewired 4 | . . . . . . . . . . . . 4 . . . . . . . . Allies Hacked . | . . . . . . . . . . . . . . . . . . . . . Hacks Repelled . | . . . . . . . . . . . . . . . . . . . . . Allies | -11 -10 -10 -9 -9 -9 -8 -8 -7 -7 -6 -5 -5 -5 -5 -5 -4 -4 -4 -4 -3 -------- Run | Scr Mat Min Mat Min Exi Min Mat Fac DSF Fac Fac Ext Cet Arc Hub Fac Upp Upp War Pro Total Allies 20 | . 1 . . . . . . . . 1 . 7 4 . . . . 2 4 1 Largest Group 7 | . 1 1 1 1 . . . . . 1 1 5 7 7 4 . . 2 . 1 Highest-Rated Group 595 | . 10 10 10 10 . . . . . 10 10 257 595 595 327 . . 110 . 47 Highest-Rated Ally 159 | . 10 10 10 10 . . . . . 10 10 159 141 141 96 . . 56 . 47 Total Orders 49 | . . 4 14 . . . . . . 29 . . 2 . . . . . . . STAY 14 | . . 2 7 . . . . . . 4 . . 1 . . . . . . . FOLLOW 12 | . . 2 7 . . . . . . 2 . . 1 . . . . . . . EXPLORE 12 | . . . . . . . . . . 12 . . . . . . . . . . RETURN 11 | . . . . . . . . . . 11 . . . . . . . . . . Ally Attacks 199 | . . . . . . . . . . . . 85 40 21 35 . . 13 3 2 Total Damage 6234 | . . . . . . . . . . . . 2270 1189 611 1538 . . 547 40 39 Kills 34 | . . . . . . . . . . . . 15 7 4 5 . . 3 . . Allies Corrupted 1 | . . . . . . . . . . . . . . . . . . . 1 . Allies Melted 1 | . . . . . . . . . . . . . . . 1 . . . . . Intel | -11 -10 -10 -9 -9 -9 -8 -8 -7 -7 -6 -5 -5 -5 -5 -5 -4 -4 -4 -4 -3 ------- Run | Scr Mat Min Mat Min Exi Min Mat Fac DSF Fac Fac Ext Cet Arc Hub Fac Upp Upp War Pro Robot Analysis Total 11 | . 3 . 5 . . . 2 . . . . 1 . . . . . . . . Derelict Logs Recovered 3 | . . . . 1 . . . . . . . . . . . . . 2 . . Drone Launches 7 | . . . . . . . . . . 7 . . . . . . . . . . Drone Recoveries 5 | . . . . . . . . . . 5 . . . . . . . . . . Exploration | -11 -10 -10 -9 -9 -9 -8 -8 -7 -7 -6 -5 -5 -5 -5 -5 -4 -4 -4 -4 -3 ------------- Run | Scr Mat Min Mat Min Exi Min Mat Fac DSF Fac Fac Ext Cet Arc Hub Fac Upp Upp War Pro Turns Passed 10346 | 86 273 370 749 155 350 302 361 203 256 739 858 1110 313 128 602 575 386 777 1624 129 Spaces Moved 6297 | 50 274 272 401 91 331 239 231 158 149 508 535 641 163 56 245 293 215 347 845 253 Core 318 | 18 . . . . . . . . . . . . . . . . . . 47 253 Treads 2125 | . . . 42 . . . . . . . . . 129 56 245 293 215 347 798 . Legs . | . . . . . . . . . . . . . . . . . . . . . Wheels 3854 | 32 274 272 359 91 331 239 231 158 149 508 535 641 34 . . . . . . . Hover . | . . . . . . . . . . . . . . . . . . . . . Flight . | . . . . . . . . . . . . . . . . . . . . . Fastest Speed 50 | 50 80 80 105 95 105 105 105 115 115 115 130 130 130 160 160 163 163 163 50 50 Average Speed 126 | 76 80 88 110 101 105 105 113 115 115 117 130 130 153 160 162 163 163 163 159 50 Slowest Speed 245 | 100 80 110 160 105 105 105 115 115 115 130 130 130 160 160 163 163 163 165 245 50 Overloaded Moves . | . . . . . . . . . . . . . . . . . . . . . Propulsion Burnouts . | . . . . . . . . . . . . . . . . . . . . . Robots Hopped . | . . . . . . . . . . . . . . . . . . . . . Cave-ins Triggered . | . . . . . . . . . . . . . . . . . . . . . Exploration Rate (%) 48 | 4 64 48 49 14 69 43 29 9 96 22 19 86 75 78 44 10 57 50 94 58 Regions Visited 20 Branch Regions 12 Pre-discovered Areas 3 | . 1 . 1 . . . . . . . . . . . . . . 1 . . Known Exits Taken 6 | . . . 1 . . . . 1 . . 1 . . . . 1 1 1 . . Unknown Exits Taken 13 | 1 1 1 . 1 1 1 1 . . 1 . 1 1 1 1 . . . 1 . Scrap Searched 5 | . . . . . . . . . . . . . . . . . 1 4 . . Spaces Dug 243 | . 7 . 4 . . 1 8 4 . 12 18 3 . . 163 8 . 13 2 . Terrain Destroyed 520 | . 7 . 4 . . 1 11 4 7 12 18 23 1 3 367 18 6 22 16 . Melee 45 | . . . . . . 1 8 4 . 12 18 2 . . . . . . . . Projectile 130 | . 7 . 4 . . . . . . . . 21 1 3 32 18 6 22 16 . AOE 345 | . . . . . . . 3 . 7 . . . . . 335 . . . . . Terrain Rammed . | . . . . . . . . . . . . . . . . . . . . . Walls Destroyed . | . . . . . . . . . . . . . . . . . . . . . Machines Disabled . | . . . . . . . . . . . . . . . . . . . . . Actions | -11 -10 -10 -9 -9 -9 -8 -8 -7 -7 -6 -5 -5 -5 -5 -5 -4 -4 -4 -4 -3 --------- Run | Scr Mat Min Mat Min Exi Min Mat Fac DSF Fac Fac Ext Cet Arc Hub Fac Upp Upp War Pro Total 7692 | 77 297 334 564 125 335 269 295 172 207 592 633 804 200 83 355 347 232 517 999 255 Wait 329 | . 1 1 1 . . 16 . . 10 28 28 21 5 6 37 3 1 117 54 . Move 6277 | 49 273 271 400 90 330 238 230 157 148 507 534 640 162 55 244 292 214 346 844 253 Hop . | . . . . . . . . . . . . . . . . . . . . . Pick Up 123 | 7 3 7 20 2 3 . 10 4 9 6 10 16 4 2 3 6 1 4 6 . Fast Attach 46 | 6 . 2 . 5 . . 2 . . 2 1 2 3 4 5 4 . . 10 . Attach 66 | 1 . 3 7 4 . . 7 2 4 3 4 5 4 . 3 2 1 2 12 2 Detach 16 | . . 1 . 2 . . . . 1 1 1 2 1 1 2 . . . 4 . Swap 260 | 4 7 11 42 9 . 5 13 3 15 12 16 19 8 5 24 15 10 25 17 . Drop 106 | 1 2 4 22 1 2 . 14 2 6 2 6 13 4 6 6 8 . 3 4 . Fire 366 | 9 11 34 72 12 . 6 10 . 9 17 9 45 9 4 30 17 5 19 48 . Melee 58 | . . . . . . 4 9 4 1 14 24 2 . . . . . . . . Ram . | . . . . . . . . . . . . . . . . . . . . . Kick . | . . . . . . . . . . . . . . . . . . . . . Crush 2 | . . . . . . . . . . . . . . . 1 . . 1 . . Escape Stasis 4 | . . . . . . . . . 4 . . . . . . . . . . . Rewire 39 | . . . . . . . . . . . . 39 . . . . . . . . Trap . | . . . . . . . . . . . . . . . . . . . . . Miscellaneous . | . . . . . . . . . . . . . . . . . . . . . Route ------- -11/Scrapyard -10/Materials (discovered 4 exits: *Mat x2 / [*Min x2]) -10/Mines -9/Materials (discovered 4 exits: *Mat x2 / *Min / *Sto) -9/Mines -9/Exiles (discovered 2 exits: [*Min x2]) -8/Mines -8/Materials -7/Factory -7/DSF -6/Factory (discovered 4 exits: *Fac x2 / Low x2) -5/Factory (discovered 4 exits: Upp x2 / *Ext x2) -5/Extension (discovered 3 exits: *Fac x2 / *Cet) -5/Cetus -5/Archives (discovered 2 exits: *Hub x2) -5/Hub_04(d) (discovered 2 exits: *Fac x2) -4/Factory (discovered 2 exits: *Upp x2) -4/Upper Caves -4/Upper Caves -4/Warlord -3/Proximity Caves History --------- Turn | Location | Event 14 | -11/Scrapyard | Discovered new exit (range 15) 87 | -11/Scrapyard | Entered Materials 125 | -10/Materials | Discovered new exit (range 16) 202 | -10/Materials | Discovered new exit (range 16) 262 | -10/Materials | Discovered new exit (range 6) 302 | -10/Materials | Discovered new exit (range 10) 341 | -10/Materials | Central database locked down 360 | -10/Materials | Entered Mines 360 | -10/Mines | Accompanied by 1 ally 554 | -10/Mines | Discovered new exit (range 12) 573 | -10/Mines | Joined a pair of Derelicts in attacking an 0b10 outpost 730 | -10/Mines | Entered Materials 730 | -9/Materials | Accompanied by 1 ally 730 | -9/Materials | Evolved 2 slots: Propulsion x1, Utility x1 809 | -9/Materials | Build established: Scavenger-Mutant 832 | -9/Materials | Discovered new exit (range 16) 1141 | -9/Materials | Discovered new exit (range 16) 1326 | -9/Materials | Identified exit to Mines 1326 | -9/Materials | Identified exit to Storage 1407 | -9/Materials | Discovered new exit (range 7) 1479 | -9/Materials | Entered Mines 1479 | -9/Mines | Accompanied by 1 ally 1490 | -9/Mines | Core integrity fell below 50% 1539 | -9/Mines | Received a Rocket Launcher from a helpful Derelict 1573 | -9/Mines | Core integrity fell below 20% 1602 | -9/Mines | Deemed a non-threat by the Exiles lab entrance 1602 | -9/Mines | Discovered new exit (range 5) 1615 | -9/Mines | Learned Materials terminal intel 1634 | -9/Mines | Entered Exiles 1648 | -9/Exiles | Discovered new exit (range 15) 1663 | -9/Exiles | Met 8R-AWN 1675 | -9/Exiles | Met EX-HEX 1746 | -9/Exiles | Met EX-DEC 1841 | -9/Exiles | Met EX-BIN 1855 | -9/Exiles | Aligned with FarCom system 1856 | -9/Exiles | Given EX-Vault access code 1881 | -9/Exiles | Opened EX-Vault 1886 | -9/Exiles | Found 0b10 Alert Chip 1908 | -9/Exiles | Warned to stay clear of 0b10 Research branches 1976 | -9/Exiles | Discovered new exit (range 10) 1984 | -9/Exiles | Left Exiles lab with 0b10 Alert Chip 1984 | -9/Exiles | Entered Mines 2272 | -8/Mines | Discovered new exit (range 14) 2286 | -8/Mines | Entered Materials 2286 | -8/Materials | Evolved 2 slots: Utility x1, Weapon x1 2287 | -8/Materials | Loaded intel: 12 terminal locations 2412 | -8/Materials | Build established: Scavenger-Assassin 2606 | -8/Materials | Discovered new exit (range 18) 2647 | -8/Materials | Entered Factory 2647 | -7/Factory | Evolved 2 slots: Utility x1, Weapon x1 2826 | -7/Factory | Central database locked down 2845 | -7/Factory | Identified exit to DSF 2850 | -7/Factory | Entered DSF 2874 | -7/DSF | Additional patrols routed to DSF 3073 | -7/DSF | Sterilization system engaged 3089 | -7/DSF | Discovered new exit (range 14) 3093 | -7/DSF | Ambient heat levels rising (+10) 3106 | -7/DSF | Entered Factory 3106 | -6/Factory | Evolved 2 slots: Utility x2 3264 | -6/Factory | Discovered new exit (range 36) 3297 | -6/Factory | Discovered new exit (range 28) 3482 | -6/Factory | Identified exit to Lower Caves 3664 | -6/Factory | Fabricated Hcp. Storage Unit (x1) 3845 | -6/Factory | Entered another Factory area 3845 | -5/Factory | Accompanied by 1 ally 3845 | -5/Factory | Evolved 2 slots: Propulsion x1, Weapon x1 4010 | -5/Factory | Fabricated Imp. Utility Shielding? 4093 | -5/Factory | Fabricated Enh. Nova Cannon (x1) 4322 | -5/Factory | Identified exit to Upper Caves 4322 | -5/Factory | Identified exit to Extension 4703 | -5/Factory | Entered Extension 4956 | -5/Extension | Rescued A7 4996 | -5/Extension | Rescued a captive Derelict 5128 | -5/Extension | Rescued a captive Derelict 5142 | -5/Extension | Rescued a captive Derelict 5281 | -5/Extension | Spotted B-75 Beast 5298 | -5/Extension | Allies destroyed B-75 Beast 5312 | -5/Extension | Spotted B-75 Beast 5321 | -5/Extension | Destroyed B-75 Beast 5385 | -5/Extension | Discovered new exit (range 12) 5428 | -5/Extension | Disrupted transfer network 5639 | -5/Extension | System corruption reached 10% 5659 | -5/Extension | Build established: Scavenger-Skirmisher 5788 | -5/Extension | Discovered new exit (range 10) 5789 | -5/Extension | Discovered new exit (range 6) 5813 | -5/Extension | Entered Cetus 5813 | -5/Cetus | Accompanied by 5 allies (A7) 5818 | -5/Cetus | Acquired a Cetus Manufacturing Module code from A7 5828 | -5/Cetus | Spotted Cetus Guard 5829 | -5/Cetus | Spotted Cetus Guard 5831 | -5/Cetus | Spotted Cetus Guard 5839 | -5/Cetus | Destroyed Cetus Guard 5839 | -5/Cetus | Spotted Cetus Guard 5843 | -5/Cetus | Allies destroyed Cetus Guard 5854 | -5/Cetus | Destroyed Cetus Guard 5855 | -5/Cetus | Allies destroyed Cetus Guard 5879 | -5/Cetus | Lost 4 parts (1p2n1w) 5896 | -5/Cetus | System corruption reached 30% 5944 | -5/Cetus | Started Cetus Manufacturing Module 5961 | -5/Cetus | Escorted A7 to Cetus Mainframe 5969 | -5/Cetus | Manufactured an Enhanced Grunt 5981 | -5/Cetus | Discovered new exit (range 20) 5994 | -5/Cetus | Manufactured an Enhanced Grunt 6019 | -5/Cetus | Manufactured an Enhanced Grunt 6044 | -5/Cetus | Manufactured an Enhanced Grunt 6061 | -5/Cetus | Cetus Manufacturing Module disabled 6126 | -5/Cetus | Entered Archives 6126 | -5/Archives | Accompanied by 7 allies (A7) 6131 | -5/Archives | Received a hacking code to weaken MAIN.C 6161 | -5/Archives | Found Prototype Device 6161 | -5/Archives | Identified Exp. Thermal Shield 6199 | -5/Archives | Discovered new exit (range 20) 6219 | -5/Archives | Discovered new exit (range 20) 6254 | -5/Archives | Entered Hub_04(d) 6254 | -5/Hub_04(d) | Accompanied by 4 allies 6373 | -5/Hub_04(d) | Discovered new exit (range 14) 6554 | -5/Hub_04(d) | First assault squad dispatched 6658 | -5/Hub_04(d) | Destroyed 7 combat bots 6672 | -5/Hub_04(d) | Discovered new exit (range 18) 6836 | -5/Hub_04(d) | Network Hub disabled 6848 | -5/Hub_04(d) | Network Hub disabled 6856 | -5/Hub_04(d) | Entered Factory 6856 | -4/Factory | Evolved 2 slots: Power x1, Utility x1 6960 | -4/Factory | Identified exit to Upper Caves 7431 | -4/Factory | Entered Upper Caves 7789 | -4/Upper Caves | Discovered new exit (range 18) 7815 | -4/Upper Caves | Identified exit to Upper Caves 7817 | -4/Upper Caves | Entered another Upper Caves area 8499 | -4/Upper Caves | Spotted B-86 Titan 8578 | -4/Upper Caves | Discovered new exit (range 9) 8592 | -4/Upper Caves | Identified exit to Warlord 8594 | -4/Upper Caves | Entered Warlord 8650 | -4/Warlord | System corruption cleaned by Quarantine Array 8807 | -4/Warlord | Build established: Scavenger-Mutant 9237 | -4/Warlord | Visited the Vortex Lab 9250 | -4/Warlord | Warlord's base attacked by MAIN.C 9251 | -4/Warlord | Found Prototype Energy Cannon 9251 | -4/Warlord | Identified Vortex Driver 9346 | -4/Warlord | Met Warlord 9582 | -4/Warlord | Spotted Striker 9591 | -4/Warlord | Lost 4 parts (1p1n2w) 9600 | -4/Warlord | Warlord forces counterattacked 9607 | -4/Warlord | P-70 Sage assimilated allied NR-178(Y) 9659 | -4/Warlord | Lost 7 parts (1p2n4w) 9685 | -4/Warlord | Spotted Striker 9690 | -4/Warlord | Spotted Executioner 9718 | -4/Warlord | Build established: Scavenger-Gunner 9734 | -4/Warlord | Destroyed Executioner 9925 | -4/Warlord | Warlord base infiltrated, sounded retreat 9959 | -4/Warlord | Spotted Striker 10015 | -4/Warlord | Spotted Striker 10069 | -4/Warlord | Destroyed 7 combat bots 10108 | -4/Warlord | Core integrity fell below 50% 10170 | -4/Warlord | Lost 12 parts (2p3n2u5w) 10185 | -4/Warlord | Spotted B-90 Cyclops 10188 | -4/Warlord | Spotted Striker 10195 | -4/Warlord | Released all parts (5) 10208 | -4/Warlord | Spotted Executioner 10211 | -4/Warlord | Core integrity fell below 20% 10213 | -4/Warlord | Discovered new exit (range 12) 10218 | -4/Warlord | Entered Proximity Caves 10237 | -3/Proximity Caves | Attracted the attention of an 0b10 outpost 10345 | -3/Proximity Caves | Attracted the attention of an 0b10 checkpoint 10347 | -3/Proximity Caves | Destroyed by Y-72 Warden with Quantum Rifle Last Messages --------------- 10198_ Acquired 15 matter. 10209_ Penetrated by Slug. 10209_ Slug penetrates Wall. 10209_ Penetrated by Slug. 10213_ EXIT=FOUND LOCATION=UNKNOWN GOAL=ESCAPE 10224_ System corrupted: Heat flow error (+220). 10236_ L-61 Swordsman springs to life. 10236_ B-74 Champion springs to life. 10236_ L-61 Swordsman springs to life. 10237_ Y-72 Warden: "DETECTED UNIDENTIFIED DERELICT." 10241_ Y-72 Warden: "REQUESTING BACKUP." 10251_ System corrupted: Matter fused (-7). 10259_ G-67 Veteran suffers critical hit (Burn). 10267_ System corrupted: Matter fused (-5). 10337_ System corrupted: Substantial component data lost. 10344_ Penetrated by Slug. 10344_ Slug penetrates Wall. 10345_ Y-72 Warden: "INTERCEPTING UNREGISTERED DERELICT." Map ----- +----------------------------------------------------+ | ###### ##??????????????????????????????????? | | ##???????????????????????????????????? | | #### #????????????????????????????????????? | | #??## ##????????????????????????????????????? | | #???# ##????????????????????????????????????? | | #???# #????????????????????????????????????? | | #???# #????????????????????????????????????? | | #???## #????????????????????????????????????? | | #????# ##????????????????????????????????????? | | ###??## ##?????????????????????????????????????? | | ##??###??????????????????????????????????????? | | ###?????????????????????????????????????????? | | #####?????????????????????????????????????? | | #?????????????????????????????????????? | | ## #????????????????????????????????????? | | #??### ?????????????????????????????????? | | #??????? ????????????????????????????????? | | #######????????? ????????????????????????????????? | | ?????????????????????????????????????????????????? | | ?????????????????????????????????????????????????? | | ????????##????????? ???#####?????????????????????? | | ???????## #????#### ???# ##????????????????????? | | ???????# #???# ???## #????????????????????? | | ???????# ???# ??## #????????????????????? | | ???????# ???# #?## #????????????????????? | | ????????# #??# #?# @ #????????????????????? | | ????????# ### #?# #????????????????????? | | ???????## #?# ##????????????????????? | | ???????# "?# #?????????????????????? | | ##?????# "## #?????????????????????? | | ###???# s ##?????????????????????? | | ##??# #??????????????????????? | | ##??# ## #??????????????????????? | | # ##?????# ## #?????????????????????? | | ## ##????# ##### #????????????????????? | | ?# #????# ##??# #???????????????????? | | ## ##??## #??# #???????????????????? | | # #### ##??# Y #???????????????????? | | ## #???# ##???????????????????? | | ?## #???# #????????????????????? | | ??## ## #??# #????????????????????? | | ???## ### #?#### ##????????????????????? | | ????# ##?# #????? ##?????????????????????? | | ????###??# #???? ##??????????????????????? | | ????????? #???? #???????????????????????? | | ?????????# #????? ? ???????????????????????? | | ?????????# #???????????????????????????????? | | ?????????# ???????????????????????????????? | | ?????????# ??????????????????????????????? | | ?????????# ?????????????????????????????? | +----------------------------------------------------+ Best States ------------- Heat Dissipation 67 Energy Generation 41 Energy Capacity 575 Matter Stores 300 Matter Capacity 600 Sight Range 22 Robot Scan Range 16 Terrain Scan Range 16 Terrain Scan Density 110 Jamming Range 16 Armor Coverage 225 Resistance: KI 25 Resistance: TH 30 Utility Shielding 66 Weapon Cycling 15 Evasion (%) 50 Targeting Accuracy 16 Target Analysis 6 Armor Integrity Analysis 30 Recoil Reduction 4 Salvage Targeting 3 Offensive Hacking 14 Authchip Count 3 Item Schematics ----------------- Hcp. Storage Unit | -9/Materials | Hacked Imp. Utility Shielding | -7/Factory | Hacked Robot Schematics ------------------ None Fabricated ------------ Hcp. Storage Unit | x1 | -6/Factory | Authchip Imp. Utility Shielding | x2 | -5/Factory | Authchip Enh. Nova Cannon | x1 | -5/Factory | Preloaded Alien Tech Used ----------------- None Achievements -------------- None Challenges ------------ None Game ------ Seed DisposableHeavySink Manual? 0 Play Time 02:44:58 Cumulative 727.4 hours Start 2022.07.03 @ 20:12:31 End 2022.07.03 @ 23:28:12 Sessions 5 Manual Loads 0 Difficulty Rogue Special Mode None Game No. 385 Rogue 258 Adventurer 125 Explorer 2 Win Type - Total 85 Types 72/6/4/1/1/0/0/0/1 Lore% 82 Gallery% 89 Achievement% 77 Wizard Run 0 Options --------- ASCII 0 Keyboard 1 Movement Numpad Keybinds 0 Fullscreen 1 Font 36/TerminusFine Map View 76x50 Tactical HUD 1 Map Filters NONE Filters NONE Steam 1 RUN: a3e2293d-b27d-46d6-af51-e385479aee0c